[Event "DVM U14 2024"]
[Site "Heidelberg"]
[Date "2024.12.29"]
[Round "6"]
[White "Schriefer, Leo Hans"]
[Black "Zabashtanskyi, Andrii"]
[Result "1/2-1/2"]
[ECO "C56"]
[WhiteElo "1477"]
[BlackElo "1644"]
[Annotator "NA RC"]
[PlyCount "62"]
[EventDate "2024.12.23"]
[EventType "team-tourn"]
[EventRounds "7"]
[EventCountry "GER"]
[SourceTitle "playchess.com"]
[Source "ChessBase"]
[SourceQuality "1"]
[TimeControl "40/5400+30:1800+30"]

1. e4 {[%emt 0:00:05]} e5 {[%emt 0:00:07]} 2. Nf3 {[%emt 0:00:03]} Nc6 {[%emt 0:00:06]} 3. d4 {[%emt 0:00:05]} exd4 {[%emt 0:00:10]} 4. Bc4 {[%emt 0:00:05]} Nf6 {[%emt 0:00:14]} 5. O-O {[%emt 0:00:17]} Nxe4 {[%emt 0:00:13]} 6. Re1 {[%emt 0:00:08]} d5 {[%emt 0:00:10]} 7. Bxd5 {[%emt 0:00:07]} Qxd5 {[%emt 0:00:10]} 8. Nc3 {[%emt 0:00:08]} Qa5 {[%emt 0:00:14]} 9. Rxe4+ {[%emt 0:00:20]} Be6 {[%emt 0:00:41]} 10. Nxd4 {[%emt 0:40:38]} O-O-O {[%emt 0:00:41]} 11. Nce2 {[%emt 0:01:32]} Bf5 {[%emt 0:01:15]} 12. Rf4 {[%emt 0:05:01]} Bxc2 {[%emt 0:00:52]} 13. Qd2 {[%emt 0:01:08]} Qxd2 {[%emt 0:00:43]} 14. Bxd2 {[%emt 0:00:13]} Nxd4 {[%emt 0:00:09]} 15. Rxd4 {[%emt 0:00:30]} Bc5 {[%emt 0:00:48]} 16. Rxd8+ {[%emt 0:01:06]} Rxd8 {[%emt 0:00:09]} 17. Bc3 {[%emt 0:01:19]} f6 {[%emt 0:01:36]} 18. Nf4 {[%emt 0:01:20]} Rd1+ {[%emt 0:03:35]} 19. Rxd1 {[%emt 0:00:25]} Bxd1 {[%emt 0:00:30]} 20. Ne6 {[%emt 0:00:10]} Bd6 {[%emt 0:03:22]} 21. Nxg7 {[%emt 0:02:24]} Be5 {[%emt 0:00:15]} 22. Bxe5 {[%emt 0:01:27]} fxe5 {[%emt 0:01:56]} 23. Kf1 {[%emt 0:01:31]} Kd7 {[%emt 0:00:35]} 24. Ke1 {[%emt 0:03:46]} Bc2 {[%emt 0:00:27]} 25. Nh5 {[%emt 0:00:25]} Ke6 {[%emt 0:00:41]} 26. Kd2 {[%emt 0:00:40]} Bg6 {[%emt 0:00:20]} 27. Ng3 {[%emt 0:00:38]} Kd5 {[%emt 0:00:12]} 28. Ne2 {[%emt 0:21:58]} a6 {[%emt 0:00:55]} 29. f4 {[%emt 0:02:11]} Ke4 {[%emt 0:01:05]} 30. fxe5 {[%emt 0:01:49]} Kxe5 {[%emt 0:00:25]} 31. Ke3 {[%emt 0:00:11]} c5 {[%emt 0:00:29]} 1/2-1/2

[Event "DVM U14 2024"]
[Site "Heidelberg"]
[Date "2024.12.29"]
[Round "6"]
[White "Popitz, Paul"]
[Black "Gorbatschow, Bogdan"]
[Result "1/2-1/2"]
[ECO "B13"]
[WhiteElo "1449"]
[BlackElo "1728"]
[Annotator "NA RC"]
[PlyCount "95"]
[EventDate "2024.12.23"]
[EventType "team-tourn"]
[EventRounds "7"]
[EventCountry "GER"]
[SourceTitle "playchess.com"]
[Source "ChessBase"]
[SourceQuality "1"]
[TimeControl "40/5400+30:1800+30"]

1. e4 {[%emt 0:00:02]} c6 {[%emt 0:00:05]} 2. d4 {[%emt 0:00:18]} d5 {[%emt 0:00:06]} 3. exd5 {[%emt 0:00:06]} cxd5 {[%emt 0:00:01]} 4. Bd3 {[%emt 0:00:12]} Nf6 {[%emt 0:00:10]} 5. h3 {[%emt 0:00:07]} Nc6 {[%emt 0:00:08]} 6. c3 {[%emt 0:00:06]} e5 {[%emt 0:01:29]} 7. dxe5 {[%emt 0:00:09]} Nxe5 {[%emt 0:00:19]} 8. Qe2 {[%emt 0:00:24]} Qe7 {[%emt 0:00:40]} 9. Bb5+ {[%emt 0:02:36]} Bd7 {[%emt 0:02:38]} 10. Bf4 {[%emt 0:01:13]} Bxb5 {[%emt 0:04:33]} 11. Qxb5+ {[%emt 0:02:05]} Nc6+ {[%emt 0:00:07]} 12. Qe2 {[%emt 0:01:53]} Qxe2+ {[%emt 0:00:56]} 13. Nxe2 {[%emt 0:00:11]} Bc5 {[%emt 0:01:13]} 14. Nd2 {[%emt 0:02:11]} O-O {[%emt 0:00:57]} 15. O-O {[%emt 0:00:13]} Rfe8 {[%emt 0:04:49]} 16. Rfe1 {[%emt 0:02:52]} Rad8 {[%emt 0:09:54]} 17. Nb3 {[%emt 0:01:48]} Bb6 {[%emt 0:01:41]} 18. Ned4 {[%emt 0:06:32]} Rxe1+ {[%emt 0:02:19]} 19. Rxe1 {[%emt 0:00:08]} Nxd4 {[%emt 0:00:12]} 20. Nxd4 {[%emt 0:00:08]} Bxd4 {[%emt 0:00:18]} 21. cxd4 {[%emt 0:00:08]} Rc8 {[%emt 0:00:22]} 22. Re7 {[%emt 0:01:29]} Nh5 {[%emt 0:05:29]} 23. Bd2 {[%emt 0:04:18]} Rb8 {[%emt 0:01:58]} 24. g4 {[%emt 0:03:31]} Nf6 {[%emt 0:03:53]} 25. Bf4 {[%emt 0:00:40]} Ra8 {[%emt 0:01:50]} 26. Rxb7 {[%emt 0:00:19]} h6 {[%emt 0:00:10]} 27. Rb8+ {[%emt 0:04:10]} Rxb8 {[%emt 0:00:13]} 28. Bxb8 {[%emt 0:00:05]} a6 {[%emt 0:00:03]} 29. f3 {[%emt 0:02:10]} Kf8 {[%emt 0:00:08]} 30. b4 {[%emt 0:00:28]} Ke7 {[%emt 0:00:16]} 31. a4 {[%emt 0:00:48]} Kd7 {[%emt 0:00:26]} 32. Kf2 {[%emt 0:03:24]} Ng8 {[%emt 0:00:30]} 33. Ba7 {[%emt 0:04:59]} Nf6 {[%emt 0:04:50]} 34. Bc5 {[%emt 0:00:36]} g6 {[%emt 0:00:39]} 35. Kg3 {[%emt 0:02:02]} h5 {[%emt 0:01:31]} 36. gxh5 {[%emt 0:06:41]} Nxh5+ {[%emt 0:00:04]} 37. Kg4 {[%emt 0:00:24]} Ke6 {[%emt 0:01:39]} 38. f4 {[%emt 0:03:32]} Nf6+ {[%emt 0:00:30]} 39. Kg5 {[%emt 0:02:49]} Nd7 {[%emt 0:03:20]} 40. h4 {[%emt 0:08:32]} a5 {[%emt 0:01:36]} 41. b5 {[%emt 0:33:21]} Nxc5 {[%emt 0:30:51]} 42. dxc5 {[%emt 0:00:07]} f5 {[%emt 0:01:58]} 43. Kxg6 {[%emt 0:00:31]} d4 {[%emt 0:00:08]} 44. h5 {[%emt 0:00:05]} d3 {[%emt 0:00:35]} 45. h6 {[%emt 0:00:06]} d2 {[%emt 0:00:06]} 46. h7 {[%emt 0:00:04]} d1=Q {[%emt 0:00:12]} 47. h8=Q {[%emt 0:00:09]} Qg4+ {[%emt 0:02:26]} 48. Kh7 {[%emt 0:00:21]} 1/2-1/2

[Event "DVM U14 2024"]
[Site "Heidelberg"]
[Date "2024.12.29"]
[Round "6"]
[White "Mosch, Cornelius"]
[Black "Blumenthal Tuset, Sebastian"]
[Result "0-1"]
[ECO "C45"]
[WhiteElo "1405"]
[BlackElo "1732"]
[Annotator "NA RC"]
[PlyCount "100"]
[EventDate "2024.12.23"]
[EventType "team-tourn"]
[EventRounds "7"]
[EventCountry "GER"]
[SourceTitle "playchess.com"]
[Source "ChessBase"]
[SourceQuality "1"]
[TimeControl "40/5400+30:1800+30"]

1. e4 {[%emt 0:00:02]} e5 {[%emt 0:00:09]} 2. Nf3 {[%emt 0:00:04]} Nc6 {[%emt 0:00:06]} 3. d4 {[%emt 0:00:05]} exd4 {[%emt 0:00:20]} 4. Nxd4 {[%emt 0:00:05]} Bc5 {[%emt 0:00:19]} 5. Nb3 {[%emt 0:00:29]} Bb6 {[%emt 0:00:18]} 6. Nc3 {[%emt 0:00:17]} Nf6 {[%emt 0:02:00]} 7. Qe2 {[%emt 0:02:28]} d6 {[%emt 0:01:09]} 8. f3 {[%emt 0:00:52]} h6 {[%emt 0:00:22]} 9. Be3 {[%emt 0:00:21]} Qe7 {[%emt 0:01:33]} 10. O-O-O {[%emt 0:00:23]} Be6 {[%emt 0:01:08]} 11. Bxb6 {[%emt 0:03:26]} axb6 {[%emt 0:00:19]} 12. a3 {[%emt 0:04:04]} Bxb3 {[%emt 0:02:37]} 13. cxb3 {[%emt 0:00:07]} O-O {[%emt 0:00:31]} 14. g4 {[%emt 0:02:16]} Qe5 {[%emt 0:05:04]} 15. Qd2 {[%emt 0:00:53]} Na5 {[%emt 0:13:54]} 16. Kc2 {[%emt 0:01:07]} Qe6 {[%emt 0:00:40]} 17. Nd5 {[%emt 0:01:03]} Ne8 {[%emt 0:24:58]} 18. b4 {[%emt 0:02:06]} Nc6 {[%emt 0:04:57]} 19. h4 {[%emt 0:01:31]} Ne5 {[%emt 0:05:33]} 20. Qe3 {[%emt 0:06:57]} Rc8 {[%emt 0:05:19]} 21. Kb1 {[%emt 0:09:57]} Rd8 {[%emt 0:01:19]} 22. g5 {[%emt 0:02:56]} h5 {[%emt 0:02:10]} 23. Bh3 {[%emt 0:00:13]} f5 {[%emt 0:05:16]} 24. Bxf5 {[%emt 0:02:05]} Rxf5 {[%emt 0:00:12]} 25. exf5 {[%emt 0:00:16]} Qxf5+ {[%emt 0:00:07]} 26. Qe4 {[%emt 0:01:02]} Qxe4+ {[%emt 0:00:00]} 27. fxe4 {[%emt 0:00:08]} Kf7 {[%emt 0:00:00]} 28. Rhf1+ {[%emt 0:00:25]} Kg8 {[%emt 0:04:15]} 29. Rf5 {[%emt 0:06:36]} Rd7 {[%emt 0:03:03]} 30. Rdf1 {[%emt 0:07:10]} Rf7 {[%emt 0:00:34]} 31. Rxf7 {[%emt 0:00:39]} Nxf7 {[%emt 0:00:24]} 32. Ne7+ {[%emt 0:01:34]} Kf8 {[%emt 0:00:42]} 33. g6 {[%emt 0:00:09]} Kxe7 {[%emt 0:00:18]} 34. gxf7 {[%emt 0:00:12]} Nf6 {[%emt 0:00:06]} 35. Rc1 {[%emt 0:01:27]} c6 {[%emt 0:00:55]} 36. b5 {[%emt 0:02:26]} c5 {[%emt 0:05:57]} 37. b4 {[%emt 0:00:10]} Kxf7 {[%emt 0:01:33]} 38. bxc5 {[%emt 0:00:11]} dxc5 {[%emt 0:02:32]} 39. e5 {[%emt 0:01:41]} Nd7 {[%emt 0:00:52]} 40. Re1 {[%emt 0:00:15]} Ke7 {[%emt 0:02:31]} 41. Rg1 {[%emt 0:30:28]} Kf7 {[%emt 0:06:35]} 42. e6+ {[%emt 0:00:00]} Kxe6 {[%emt 0:00:09]} 43. Rxg7 {[%emt 0:00:00]} Nf6 {[%emt 0:00:18]} 44. Rxb7 {[%emt 0:00:00]} Nd5 {[%emt 0:00:40]} 45. Kc2 {[%emt 0:00:00]} c4 {[%emt 0:01:17]} 46. Rh7 {[%emt 0:00:00]} Nf6 {[%emt 0:01:49]} 47. Rg7 {[%emt 0:00:00]} Ke5 {[%emt 0:02:56]} 48. Rg6 {[%emt 0:00:00]} Kf5 {[%emt 0:01:58]} 49. Rxf6+ {[%emt 0:00:00]} Kxf6 {[%emt 0:00:06]} 50. a4 {[%emt 0:00:00]} Ke6 {[%emt 0:00:10]} 0-1

[Event "DVM U14 2024"]
[Site "Heidelberg"]
[Date "2024.12.29"]
[Round "6"]
[White "Zhou, Louis Yuchen"]
[Black "Spielvogel, Oliver"]
[Result "0-1"]
[ECO "B41"]
[WhiteElo "1215"]
[BlackElo "1543"]
[Annotator "NA RC"]
[PlyCount "56"]
[EventDate "2024.12.23"]
[EventType "team-tourn"]
[EventRounds "7"]
[EventCountry "GER"]
[SourceTitle "playchess.com"]
[Source "ChessBase"]
[SourceQuality "1"]
[TimeControl "40/5400+30:1800+30"]

1. e4 {[%emt 0:00:08]} c5 {[%emt 0:00:10]} 2. Nf3 {[%emt 0:00:07]} e6 {[%emt 0:00:15]} 3. d4 {[%emt 0:00:14]} cxd4 {[%emt 0:00:15]} 4. Nxd4 {[%emt 0:00:32]} a6 {[%emt 0:00:17]} 5. Bc4 {[%emt 0:00:37]} b5 {[%emt 0:00:22]} 6. Bb3 {[%emt 0:00:14]} Bb7 {[%emt 0:00:19]} 7. Qd3 {[%emt 0:02:52]} Nf6 {[%emt 0:01:00]} 8. Nd2 {[%emt 0:01:36]} Be7 {[%emt 0:01:25]} 9. O-O {[%emt 0:00:19]} O-O {[%emt 0:00:06]} 10. Re1 {[%emt 0:01:03]} d6 {[%emt 0:00:22]} 11. Re3 {[%emt 0:05:52]} Qc7 {[%emt 0:01:24]} 12. Rg3 {[%emt 0:02:54]} Nbd7 {[%emt 0:01:42]} 13. Qe3 {[%emt 0:11:55]} Rfd8 {[%emt 0:02:03]} 14. Qh6 {[%emt 0:02:57]} Bf8 {[%emt 0:00:32]} 15. Nxe6 {[%emt 0:03:23]} fxe6 {[%emt 0:01:27]} 16. Bxe6+ {[%emt 0:00:09]} Kh8 {[%emt 0:00:10]} 17. Qh4 {[%emt 0:02:33]} Nc5 {[%emt 0:05:45]} 18. Qxf6 {[%emt 0:00:57]} Nxe6 {[%emt 0:01:12]} 19. Qxe6 {[%emt 0:02:01]} Re8 {[%emt 0:00:25]} 20. Qf5 {[%emt 0:02:38]} Qxc2 {[%emt 0:08:00]} 21. Rg4 {[%emt 0:04:39]} Qd1+ {[%emt 0:03:06]} 22. Nf1 {[%emt 0:00:47]} Bc8 {[%emt 0:00:10]} 23. Qf4 {[%emt 0:06:33]} Qxg4 {[%emt 0:00:17]} 24. Qd2 {[%emt 0:00:27]} Qxe4 {[%emt 0:01:38]} 25. Ng3 {[%emt 0:00:29]} Qe1+ {[%emt 0:00:15]} 26. Qxe1 {[%emt 0:00:03]} Rxe1+ {[%emt 0:00:19]} 27. Nf1 {[%emt 0:00:01]} Bf5 {[%emt 0:00:36]} 28. h3 {[%emt 0:00:19]} Bd3 {[%emt 0:00:15]} 0-1